fUSD/lending_fUSD_20240409
["ID","MTS","AMOUNT","RATE_DAILY","PERIOD"]
[321936978,1712643047134,-500.0,0.00020821,2]
[321936980,1712643047143,-500.0,0.00020821,2]
[321936981,1712643047152,-6729.67,0.00020821,2]
[321936983,1712643047161,-503.45683852,0.00020821,2]
[321936985,1712643047171,-500.0,0.00020821,2]
[321936987,1712643047180,-1462.92,0.00020821,2]
[321936989,1712643047188,-500.0,0.00020821,2]
[321936991,1712643047200,-500.0,0.00020821,2]
[321936994,1712643047210,-316.98375612,0.00020821,2]
[321936995,1712643047219,-1495.52,0.00020821,2]
[321936997,1712643047228,-500.0,0.00020821,2]
[321936999,1712643047237,-500.0,0.00020821,2]
[321937001,1712643047246,-515.13,0.00020821,2]
[321937003,1712643047255,-1343.57,0.00020821,2]
[321937005,1712643047265,-500.0,0.00020821,2]
[321937007,1712643047273,-500.0,0.00020821,2]
[321937010,1712643047282,-1466.65,0.00020821,2]
[321937012,1712643047292,-1486.1,0.00020821,2]
[321937014,1712643047301,-500.0,0.00020821,2]
[321937016,1712643047310,-12742.0,0.00020821,2]
[321937018,1712643047319,-2628.87,0.00020821,2]
[321937020,1712643047329,-586.29,0.00020821,2]
[321937022,1712643047337,-1516.9,0.00020821,2]
[321937024,1712643047346,-500.0,0.00020821,2]
[321937026,1712643047355,-1029.44,0.00020821,2]
[321937027,1712643047365,-3878.46,0.00020821,2]
[321937030,1712643047375,-500.0,0.00020821,2]
[321937031,1712643047385,-500.0,0.00020821,2]
[321937032,1712643047394,-5520.25,0.00020821,2]
[321937033,1712643047402,-1558.42,0.00020821,2]
[321937034,1712643047411,-500.0,0.00020821,2]
[321937035,1712643047420,-59910.63,0.00020821,2]
[321937036,1712643047430,-500.0,0.00020821,2]
[321937038,1712643047439,-7853.13,0.00020821,2]
[321937040,1712643047449,-500.0,0.00020821,2]
[321937042,1712643047458,-500.0,0.00020821,2]
[321937044,1712643047467,-889.49,0.00020821,2]
[321937046,1712643047477,-570.99,0.00020821,2]
[321937048,1712643047486,-11543.33,0.00020821,2]
[321937050,1712643047495,-1391.89,0.00020821,2]
[321937052,1712643047504,-500.0,0.00020821,2]
[321937054,1712643047513,-1485.39,0.00020821,2]
[321937056,1712643047523,-500.0,0.00020821,2]
[321937058,1712643047532,-500.0,0.00020821,2]
[321937060,1712643047542,-500.0,0.00020821,2]
[321937062,1712643047551,-500.0,0.00020821,2]
[321937064,1712643047561,-3272.63,0.00020821,2]
[321937066,1712643047570,-4833.44,0.00020821,2]
[321937068,1712643047579,-2618.06,0.00020821,2]
[321937070,1712643047588,-17793.17,0.00020821,2]
[321937072,1712643047597,-4546.31,0.00020821,2]
[321937074,1712643047606,-500.0,0.00020821,2]
[321937076,1712643047615,-500.0,0.00020821,2]
[321937078,1712643047624,-500.0,0.00020821,2]
[321937080,1712643047634,-500.0,0.00020821,2]
[321937082,1712643047643,-500.0,0.00020821,2]
[321937084,1712643047652,-500.0,0.00020821,2]
[321937086,1712643047662,-747.9,0.00020821,2]
[321937088,1712643047671,-3469.06,0.00020821,2]
[321937090,1712643047681,-500.0,0.00020821,2]
[321937092,1712643047690,-1690.36,0.00020821,2]
[321937094,1712643047699,-500.0,0.00020821,2]
[321937096,1712643047708,-219.13216335,0.00020821,2]
[321937098,1712643047718,-500.0,0.00020821,2]
[321937100,1712643047727,-512.88920514,0.00020821,2]
[321937102,1712643047736,-500.57226938,0.00020821,2]
[321937104,1712643047745,-7252.1,0.00020821,2]
[321937106,1712643047755,-6697.34,0.00020821,2]
[321937108,1712643047764,-500.0,0.00020821,2]
[321937111,1712643047774,-11146.73,0.00020821,2]
[321937113,1712643047785,-500.0,0.00020821,2]
[321937115,1712643047796,-5019.66,0.00020821,2]
[321937117,1712643047806,-2335.8,0.00020821,2]
[321937119,1712643047815,-526.23020561,0.00020821,2]
[321937121,1712643047828,-500.0,0.00020821,2]
[321937122,1712643047837,-992.39,0.00020821,2]
[321937124,1712643047846,-500.0,0.00020821,2]
[321937126,1712643047855,-500.0,0.00020821,2]
[321937129,1712643047866,-500.0,0.00020821,2]
[321937131,1712643047875,-500.0,0.00020821,2]
[321937133,1712643047884,-500.0,0.00020821,2]
[321937135,1712643047894,-500.0,0.00020821,2]
[321937136,1712643047904,-500.0,0.00020821,2]
[321937138,1712643047913,-500.0,0.00020821,2]
[321937140,1712643047923,-500.0,0.00020821,2]
[321937143,1712643047932,-500.0,0.00020821,2]
[321937145,1712643047941,-943.86,0.00020821,2]
[321937146,1712643047950,-1680.01,0.00020821,2]
[321937148,1712643047961,-500.0,0.00020821,2]
[321937150,1712643047972,-4882.77,0.00020821,2]
[321937152,1712643047981,-1436.97,0.00020821,2]
[321937154,1712643047991,-2257.5,0.00020821,2]
[321937157,1712643048000,-3150.47,0.00020821,2]
[321937159,1712643048010,-500.0,0.00020821,2]
[321937161,1712643048020,-500.0,0.00020821,2]
[321937163,1712643048032,-500.0,0.00020821,2]
[321937164,1712643048043,-500.0,0.00020821,2]
[321937167,1712643048053,-2589.96,0.00020821,2]
[321937168,1712643048062,-500.0,0.00020821,2]
[321937170,1712643048072,-500.0,0.00020821,2]
[321937172,1712643048090,-3650.95,0.00020821,2]
[321937175,1712643048100,-7111.32,0.00020821,2]
[321937177,1712643048109,-500.0,0.00020821,2]
[321937178,1712643048118,-1357.24,0.00020821,2]
[321937181,1712643048127,-1497.52,0.00020821,2]
[321937182,1712643048137,-500.0,0.00020821,2]
[321937184,1712643048147,-1913.1,0.00020821,2]
[321937186,1712643048156,-500.0,0.00020821,2]
[321937188,1712643048165,-602.49,0.00020821,2]
[321937190,1712643048175,-719.36,0.00020821,2]
[321937192,1712643048184,-500.0,0.00020821,2]
[321937194,1712643048193,-500.0,0.00020821,2]
[321937196,1712643048202,-500.0,0.00020821,2]
[321937198,1712643048211,-2855.48,0.00020821,2]
[321937200,1712643048222,-3832.7,0.00020821,2]
[321937202,1712643048232,-7044.62,0.00020821,2]
[321937204,1712643048243,-500.0,0.00020821,2]
[321937206,1712643048252,-376.39683976,0.00020821,2]
[321937208,1712643048261,-500.0,0.00020821,2]
[321937210,1712643048272,-7510.87,0.00020821,2]
[321937212,1712643048281,-500.0,0.00020821,2]
[321937214,1712643048290,-500.0,0.00020821,2]
[321937217,1712643048300,-500.0,0.00020821,2]
[321937219,1712643048309,-500.0,0.00020821,2]
[321937220,1712643048319,-1346.01,0.00020821,2]
[321937222,1712643048328,-741.94,0.00020821,2]
[321937224,1712643048338,-500.0,0.00020821,2]
[321937227,1712643048347,-500.0,0.00020821,2]
[321937228,1712643048357,-500.0,0.00020821,2]
[321937231,1712643048367,-556.10047584,0.00020821,2]
[321937232,1712643048376,-2120.94,0.00020821,2]
[321937233,1712643048385,-1998.26,0.00020821,2]
[321937234,1712643048394,-2671.42,0.00020821,2]
[321937235,1712643048403,-509.64501588,0.00020821,2]
[321937236,1712643048412,-1606.46,0.00020821,2]
[321937237,1712643048421,-500.0,0.00020821,2]
[321937239,1712643048430,-500.0,0.00020821,2]
[321937241,1712643048439,-398.54258094,0.00020821,2]
[321937243,1712643048448,-500.0,0.00020821,2]
[321937245,1712643048457,-24943.11,0.00020821,2]
[321937247,1712643048466,-500.0,0.00020821,2]
[321937249,1712643048476,-500.0,0.00020821,2]
[321937251,1712643048486,-518.81,0.00020821,2]
[321937253,1712643048495,-13371.33,0.00020821,2]
[321937255,1712643048504,-500.0,0.00020821,2]
[321937257,1712643048514,-904.59,0.00020821,2]
[321937259,1712643048523,-500.0,0.00020821,2]
[321937261,1712643048532,-1250.1,0.00020821,2]
[321937263,1712643048541,-500.0,0.00020821,2]
[321937265,1712643048551,-505.78666866,0.00020821,2]
[321937267,1712643048560,-3352.74,0.00020821,2]
[321937269,1712643048569,-500.0,0.00020821,2]
[321937271,1712643048578,-500.0,0.00020821,2]
[321937273,1712643048588,-2969.11,0.00020821,2]
[321937275,1712643048597,-1109.95,0.00020821,2]
[321937277,1712643048606,-698.07,0.00020821,2]
[321937279,1712643048615,-500.0,0.00020821,2]
[321937281,1712643048625,-500.0,0.00020821,2]
[321937283,1712643048634,-992.34,0.00020821,2]
[321937285,1712643048642,-500.0,0.00020821,2]
[321937287,1712643048651,-2256.44,0.00020821,2]
[321937288,1712643048662,-4153.55,0.00020821,2]
[321937290,1712643048671,-500.0,0.00020821,2]
[321937293,1712643048680,-500.0,0.00020821,2]
[321937295,1712643048690,-23165.91,0.00020821,2]
[321937297,1712643048699,-679.44,0.00020821,2]
[321937299,1712643048708,-500.0,0.00020821,2]
[321937301,1712643048718,-500.0,0.00020821,2]
[321937303,1712643048727,-500.0,0.00020821,2]
[321937305,1712643048736,-500.0,0.00020821,2]
[321937307,1712643048746,-500.0,0.00020821,2]
[321937309,1712643048755,-3642.99,0.00020821,2]
[321937311,1712643048764,-18680.66,0.00020821,2]
[321937313,1712643048773,-168.4508715,0.00020821,2]
[321937315,1712643048783,-1491.11,0.00020821,2]
[321937317,1712643048791,-782.65,0.00020821,2]
[321937319,1712643048800,-500.0,0.00020821,2]
[321937321,1712643048809,-3775.36,0.00020821,2]
[321937323,1712643048820,-3829.45,0.00020821,2]
[321937325,1712643048834,-4472.88,0.00020821,2]
[321937326,1712643048844,-598.57,0.00020821,2]
[321937329,1712643048854,-918.73,0.00020821,2]
[321937330,1712643048864,-500.0,0.00020821,2]
[321937333,1712643048873,-500.0,0.00020821,2]
[321937335,1712643048882,-500.0,0.00020821,2]
[321937337,1712643048892,-4563.59,0.00020821,2]
[321937338,1712643048902,-3649.25,0.00020821,2]
[321937340,1712643048911,-4563.59,0.00020821,2]
[321937342,1712643048921,-4563.59,0.00020821,2]
[321937344,1712643048930,-4563.59,0.00020821,2]
[321937346,1712643048939,-4563.59,0.00020821,2]
[321937349,1712643048948,-4563.59,0.00020821,2]
[321937350,1712643048957,-5741.92,0.00020821,2]
[321937353,1712643048967,-4563.59,0.00020821,2]
[321937355,1712643048975,-4563.59,0.00020821,2]
[321937357,1712643048985,-500.0,0.00020821,2]
[321937359,1712643048994,-4563.59,0.00020821,2]
[321937361,1712643049003,-500.0,0.00020821,2]
[321937363,1712643049012,-4563.59,0.00020821,2]
[321937365,1712643049021,-552.41,0.00020821,2]
[321937366,1712643049030,-4563.59,0.00020821,2]
[321937368,1712643049039,-4563.59,0.00020821,2]
[321937370,1712643049048,-338.50211589,0.00020821,2]
[321937372,1712643049058,-577.31,0.00020821,2]
[321937375,1712643049067,-4563.59,0.00020821,2]
[321937377,1712643049076,-4563.59,0.00020821,2]
[321937379,1712643049085,-4563.59,0.00020821,2]
[321937381,1712643049094,-1389.29,0.00020821,2]
[321937382,1712643049103,-1390.3,0.00020821,2]
[321937385,1712643049113,-3380.41,0.00020821,2]
[321937387,1712643049122,-500.0,0.00020821,2]
[321937388,1712643049133,-3817.4,0.00020821,2]
[321937390,1712643049143,-869.16,0.00020821,2]
[321937393,1712643049152,-11005.16,0.00020821,2]
[321937395,1712643049161,-2164.95,0.00020821,2]
[321937397,1712643049171,-500.0,0.00020821,2]
[321937399,1712643049179,-1286.35,0.00020821,2]
[321937400,1712643049189,-1452.46,0.00020821,2]
[321937403,1712643049198,-500.0,0.00020821,2]
[321937405,1712643049207,-500.0,0.00020821,2]
[321937407,1712643049216,-3183.47,0.00020821,2]
[321937409,1712643049225,-520.15,0.00020821,2]
[321937411,1712643049234,-2323.98,0.00020821,2]
[321937413,1712643049243,-22818.47,0.00020821,2]
[321937415,1712643049252,-500.0,0.00020821,2]
[321937417,1712643049262,-500.0,0.00020821,2]
[321937418,1712643049271,-500.0,0.00020821,2]
[321937420,1712643049280,-500.0,0.00020821,2]
[321937421,1712643049289,-4330.46,0.00020821,2]
[321937422,1712643049298,-500.0,0.00020821,2]
[321937423,1712643049307,-505.21006571,0.00020821,2]
[321937424,1712643049316,-500.0,0.00020821,2]
[321937425,1712643049326,-500.0,0.00020821,2]
[321937427,1712643049335,-4663.39,0.00020821,2]
[321937429,1712643049345,-500.0,0.00020821,2]
[321937431,1712643049354,-500.0,0.00020821,2]
[321937433,1712643049363,-797.78,0.00020821,2]
[321937435,1712643049372,-500.0,0.00020821,2]
[321937437,1712643049381,-500.0,0.00020821,2]
[321937439,1712643049390,-500.0,0.00020821,2]
[321937441,1712643049400,-500.0,0.00020821,2]
[321937443,1712643049410,-500.0,0.00020821,2]
[321937445,1712643049419,-500.0,0.00020821,2]
[321937447,1712643049429,-500.0,0.00020821,2]
[321937449,1712643049438,-500.0,0.00020821,2]
[321937451,1712643049447,-811.41,0.00020821,2]
[321937453,1712643049457,-10771.43,0.00020821,2]
[321937455,1712643049466,-500.0,0.00020821,2]
[321937457,1712643049475,-1571.7,0.00020821,2]
[321937459,1712643049485,-500.0,0.00020821,2]
[321937461,1712643049494,-1539.48,0.00020821,2]
[321937463,1712643049503,-500.0,0.00020821,2]
[321937465,1712643049513,-500.0,0.00020821,2]
[321937467,1712643049522,-3558.95,0.00020821,2]
[321937469,1712643049532,-2161.38,0.00020821,2]
[321937471,1712643049541,-1833.91,0.00020821,2]
[321937473,1712643049550,-4432.37,0.00020821,2]
[321937475,1712643049560,-542.05,0.00020821,2]
[321937477,1712643049569,-500.0,0.00020821,2]
[321937479,1712643049578,-539.54780155,0.00020821,2]
[321937481,1712643049587,-500.0,0.00020821,2]
[321937483,1712643049596,-9997.19,0.00020821,2]
[321937485,1712643049605,-1667.15,0.00020821,2]
[321937487,1712643049614,-4600.95,0.00020821,2]
[321937489,1712643049624,-901.58,0.00020821,2]
[321937491,1712643049633,-500.0,0.00020821,2]
[321937493,1712643049642,-500.0,0.00020821,2]
[321937495,1712643049652,-500.0,0.00020821,2]
[321937497,1712643049662,-4303.01,0.00020821,2]
[321937499,1712643049671,-565.75,0.00020821,2]
[321937501,1712643049680,-61878.54,0.00020821,2]
[321937503,1712643049690,-635.1,0.00020821,2]
[321937505,1712643049699,-1098.06,0.00020821,2]
[321937507,1712643049708,-500.0,0.00020821,2]
[321937509,1712643049718,-500.0,0.00020821,2]
[321937511,1712643049727,-500.0,0.00020821,2]
[321937513,1712643049736,-8105.39,0.00020821,2]
[321937515,1712643049744,-500.0,0.00020821,2]
[321937517,1712643049753,-1172.15,0.00020821,2]
[321937519,1712643049762,-500.0,0.00020821,2]
[321937521,1712643049771,-48595.4,0.00020821,2]
[321937523,1712643049780,-163.12571298,0.00020821,2]
[321937525,1712643049789,-500.0,0.00020821,2]
[321937527,1712643049798,-500.0,0.00020821,2]
[321937529,1712643049807,-500.0,0.00020821,2]
[321937531,1712643049817,-8020.59,0.00020821,2]
[321937533,1712643049829,-671.82,0.00020821,2]
[321937535,1712643049839,-500.0,0.00020821,2]
[321937537,1712643049849,-1953.74,0.00020821,2]
[321937539,1712643049858,-500.0,0.00020821,2]
[321937541,1712643049870,-1268.69,0.00020821,2]
[321937543,1712643049880,-500.0,0.00020821,2]
[321937545,1712643049890,-500.0,0.00020821,2]
[321937547,1712643049902,-596.21,0.00020821,2]
[321937549,1712643049912,-3072.08,0.00020821,2]
[321937551,1712643049922,-500.0,0.00020821,2]
[321937553,1712643049932,-1482.99,0.00020821,2]
[321937555,1712643049941,-500.0,0.00020821,2]
[321937557,1712643049951,-2068.97,0.00020821,2]
[321937559,1712643049960,-500.0,0.00020821,2]
[321937561,1712643049970,-562.32937769,0.00020821,2]
[321937563,1712643049979,-20315.21,0.00020821,2]
[321937565,1712643049988,-622.3,0.00020821,2]
[321937567,1712643049997,-2165.84,0.00020821,2]
[321937569,1712643050006,-4470.99,0.00020821,2]
[321937571,1712643050015,-3327.44,0.00020821,2]
[321937573,1712643050025,-713.15,0.00020821,2]
[321937575,1712643050034,-3598.6,0.00020821,2]
[321937577,1712643050043,-3271.02,0.00020821,2]
[321937579,1712643050053,-12092.42,0.00020821,2]
[321937582,1712643050063,-1853.39,0.00020821,2]
[321937583,1712643050072,-1483.83,0.00020821,2]
[321937585,1712643050081,-784.07,0.00020821,2]
[321937587,1712643050090,-715.6,0.00020821,2]
[321937589,1712643050100,-500.0,0.00020821,2]
[321937591,1712643050109,-594.6,0.00020821,2]
[321937592,1712643050118,-502.48575886,0.00020821,2]
[321937593,1712643050127,-1990.03,0.00020821,2]
[321937594,1712643050137,-1942.13,0.00020821,2]
[321937595,1712643050148,-500.0,0.00020821,2]
[321937597,1712643050158,-500.0,0.00020821,2]
[321937599,1712643050167,-3855.9,0.00020821,2]
[321937601,1712643050176,-2320.05,0.00020821,2]
[321937603,1712643050185,-1421.87,0.00020821,2]
[321937604,1712643050194,-500.0,0.00020821,2]
[321937606,1712643050203,-636.21,0.00020821,2]
[321937608,1712643050213,-500.0,0.00020821,2]
[321937610,1712643050222,-4754.03,0.00020821,2]
[321937613,1712643050231,-500.0,0.00020821,2]
[321937614,1712643050241,-500.0,0.00020821,2]
[321937616,1712643050249,-503.29,0.00020821,2]
[321937618,1712643050259,-500.0,0.00020821,2]
[321937620,1712643050268,-4588.85,0.00020821,2]
[321937622,1712643050278,-500.0,0.00020821,2]
[321937625,1712643050287,-1271.48,0.00020821,2]
[321937626,1712643050297,-3550.97,0.00020821,2]
[321937628,1712643050306,-500.0,0.00020821,2]
[321937630,1712643050316,-1640.17,0.00020821,2]
[321937632,1712643050325,-4148.77,0.00020821,2]
[321937634,1712643050334,-503.12937236,0.00020821,2]
[321937636,1712643050344,-9310.45,0.00020821,2]
[321937639,1712643050353,-7330.14,0.00020821,2]
[321937640,1712643050362,-2434.74,0.00020821,2]
[321937642,1712643050373,-500.0,0.00020821,2]
[321937644,1712643050382,-740.38,0.00020821,2]
[321937646,1712643050391,-500.0,0.00020821,2]
[321937648,1712643050401,-3819.96,0.00020821,2]
[321937650,1712643050410,-2309.22,0.00020821,2]
[321937652,1712643050419,-500.0,0.00020821,2]
[321937654,1712643050428,-500.0,0.00020821,2]
[321937657,1712643050438,-500.0,0.00020821,2]
[321937659,1712643050447,-567.15838533,0.00020821,2]
[321937661,1712643050458,-10727.44,0.00020821,2]
[321937662,1712643050467,-500.0,0.00020821,2]
[321937665,1712643050477,-500.0,0.00020821,2]
[321937667,1712643050486,-500.0,0.00020821,2]
[321937669,1712643050495,-552.85558896,0.00020821,2]
[321937671,1712643050504,-4151.59,0.00020821,2]
[321937672,1712643050514,-4885.73,0.00020821,2]
[321937674,1712643050523,-500.0,0.00020821,2]
[321937675,1712643050532,-500.0,0.00020821,2]
[321937677,1712643050542,-500.0,0.00020821,2]
[321937678,1712643050551,-500.0,0.00020821,2]
[321937680,1712643050561,-500.0,0.00020821,2]
[321937681,1712643050571,-500.0,0.00020821,2]
[321937683,1712643050581,-500.0,0.00020821,2]
[321937684,1712643050591,-3558.34,0.00020821,2]
[321937686,1712643050600,-500.0,0.00020821,2]
[321937687,1712643050609,-29238.65,0.00020821,2]
[321937689,1712643050618,-503.71,0.00020821,2]
[321937690,1712643050628,-500.0,0.00020821,2]
[321937692,1712643050637,-2407.19,0.00020821,2]
[321937694,1712643050647,-500.0,0.00020821,2]
[321937695,1712643050656,-500.0,0.00020821,2]
[321937697,1712643050666,-2364.83,0.00020821,2]
[321937698,1712643050676,-500.0,0.00020821,2]
[321937700,1712643050685,-500.0,0.00020821,2]
[321937701,1712643050694,-963.31199133,0.0002083,2]
[321937703,1712643050704,-1135.31522102,0.00020884,2]
[321937704,1712643050713,-389.83,0.000209,2]
[321937706,1712643050722,-963.31199133,0.00020949,2]
[321937708,1712643050732,-500.0,0.00020999,2]
[321937717,1712643050864,-500.0,0.00020999,2]
[321937719,1712643050874,-500.0,0.00020999,2]
[321937721,1712643050884,-524.55,0.00020999,2]
[321937723,1712643050893,-524.55,0.00020999,2]
[321937724,1712643050903,-524.55,0.00020999,2]
[321937726,1712643050912,-524.55,0.00020999,2]
[321937727,1712643050922,-524.55,0.00020999,2]
[321937729,1712643050931,-524.55,0.00020999,2]
[321937731,1712643050940,-524.55,0.00020999,2]
[321937732,1712643050949,-524.55,0.00020999,2]
[321937734,1712643050959,-524.55,0.00020999,2]
[321937736,1712643050968,-524.55,0.00020999,2]
[321937737,1712643050978,-524.59,0.00020999,2]
[321937739,1712643050987,-4563.59,0.00020999,2]
[321937741,1712643050997,-4563.59,0.00020999,2]
[321937742,1712643051006,-4563.59,0.00020999,2]
[321937744,1712643051016,-4563.59,0.00020999,2]
[321937746,1712643051025,-4563.59,0.00020999,2]
[321937747,1712643051035,-4563.59,0.00020999,2]
[321937749,1712643051044,-4563.59,0.00020999,2]
[321937751,1712643051053,-4563.59,0.00020999,2]
[321937752,1712643051063,-4563.80710951,0.00020999,2]
[321937754,1712643051072,-749682.09047742,0.00021,2]
[321937802,1712643051666,-1300491.53626789,0.00021,2]
[321937804,1712643051678,-28818.94283628,0.00021,2]
[321937813,1712643051755,-8182.19,0.00020821,2]
[321937815,1712643051765,-500.0,0.00020821,2]
[321937817,1712643051774,-6932.4587665,0.00021,2]
[321937819,1712643051787,-6816.60648111,0.00021,2]
[321937822,1712643051799,-16457.63567853,0.00021,2]
[321937824,1712643051810,-40379.60288195,0.00021,2]
[321937826,1712643051824,-5315.27782695,0.00021,2]
[321937828,1712643051836,-18383.06470719,0.00021,2]
[321937831,1712643051847,-2522.27084952,0.00021,2]
[321937833,1712643051859,-5309.66266064,0.00021,2]
[321937835,1712643051871,-43354.94645475,0.00021,2]
[321937837,1712643051882,-51402.76483321,0.00021,2]
[321937872,1712643052247,-510.05442422,0.00020821,2]
[321937874,1712643052256,-1518.95392731,0.00021,2]
[321937880,1712643052306,-294.5,0.00021,2]
[321937883,1712643052317,-1333.40940244,0.00021,2]
[321937885,1712643052329,-1041.26351457,0.00021,2]
[321937895,1712643052417,-278.07898254,0.00020721,2]
[321937897,1712643052427,-12042.27157502,0.00021,2]
[321937908,1712643052517,-15431.18244401,0.00021,2]
[321937910,1712643052530,-3563.6408402,0.00021,2]
[321938048,1712643053873,-1000.0,0.0002082,2]
[321938050,1712643053883,-4148.63,0.00020821,2]
[321938052,1712643053892,-566.15,0.00020821,2]
[321938054,1712643053901,-500.0,0.00020821,2]
[321938056,1712643053910,-72769.19223104,0.00021,2]
[321938058,1712643053919,-919.45,0.00021,2]
[321938060,1712643053928,-1408.71890234,0.00021,2]
[321938062,1712643053937,-117735.98587433,0.00021,2]
[321938064,1712643053946,-500.0,0.00021,2]
[321938066,1712643053955,-1001.5318234,0.00021,2]
[321938068,1712643053965,-481.6,0.00021,2]
[321938070,1712643053975,-1000.0,0.00021015,2]
[321938072,1712643053984,-500.0,0.00021015,2]
[321938074,1712643053994,-963.31199133,0.00021068,2]
[321938076,1712643054004,-1921.65897087,0.00021068,2]
[321938078,1712643054014,-1135.31522102,0.00021069,2]
[321938080,1712643054023,-4773.664,0.00021076,2]
[321938082,1712643054032,-1989.352,0.00021076,2]
[321938084,1712643054041,-2460.0,0.00021076,2]
[321938086,1712643054050,-2485.472,0.00021076,2]
[321938088,1712643054060,-500.0,0.00021094,2]
[321938090,1712643054069,-583.52715343,0.00021094,2]
[321938092,1712643054078,-500.0,0.00021095,2]
[321938094,1712643054088,-502.82400381,0.00021095,2]
[321938096,1712643054097,-557.05208491,0.00021095,2]
[321938098,1712643054107,-500.0,0.00021095,2]
[321938101,1712643054116,-500.0,0.00021095,2]
[321938103,1712643054126,-500.0,0.00021095,2]
[321938104,1712643054135,-500.0,0.00021095,2]
[321938107,1712643054144,-501.94173886,0.00021095,2]
[321938109,1712643054154,-500.0,0.00021095,2]
[321938110,1712643054163,-500.0,0.00021095,2]
[321938112,1712643054172,-500.0,0.00021095,2]
[321938114,1712643054181,-500.0,0.00021095,2]
[321938117,1712643054191,-500.0,0.00021095,2]
[321938119,1712643054200,-500.0,0.00021095,2]
[321938120,1712643054209,-500.0,0.00021095,2]
[321938123,1712643054218,-500.0,0.00021095,2]
[321938125,1712643054228,-500.0,0.00021095,2]
[321938127,1712643054237,-500.0,0.00021095,2]
[321938129,1712643054246,-383.08374367,0.00021095,2]
[321938131,1712643054255,-500.0,0.00021095,2]
[321938133,1712643054264,-500.0,0.00021095,2]
[321938135,1712643054273,-175.90862256,0.00021095,2]
[321938137,1712643054284,-535.30571386,0.00021095,2]
[321938138,1712643054293,-500.0,0.00021095,2]
[321938141,1712643054304,-500.0,0.00021095,2]
[321938143,1712643054313,-500.0,0.00021095,2]
[321938145,1712643054326,-974.54,0.00021095,2]
[321938146,1712643054335,-500.0,0.00021095,2]
[321938148,1712643054344,-500.0,0.00021095,2]
[321938150,1712643054354,-500.0,0.00021095,2]
[321938152,1712643054363,-500.0,0.00021095,2]
[321938154,1712643054372,-500.0,0.00021095,2]
[321938156,1712643054382,-500.0,0.00021095,2]
[321938158,1712643054392,-500.0,0.00021095,2]
[321938160,1712643054401,-316.55738173,0.00021095,2]
[321938162,1712643054410,-500.0,0.00021095,2]
[321938164,1712643054421,-500.0,0.00021095,2]
[321938166,1712643054431,-500.0,0.00021095,2]
[321938168,1712643054440,-500.0,0.00021095,2]
[321938170,1712643054449,-500.0,0.00021095,2]
[321938173,1712643054459,-1232.25,0.00021095,2]
[321938175,1712643054468,-554.07073961,0.00021095,2]
[321938176,1712643054478,-500.0,0.00021095,2]
[321938178,1712643054488,-500.0,0.00021095,2]
[321938180,1712643054497,-234.15322979,0.00021095,2]
[321938182,1712643054507,-79.95922028,0.00021095,2]
[321938185,1712643054522,-420.04077972,0.00021095,2]
[321938187,1712643054532,-500.0,0.00021095,2]
[321938189,1712643054542,-500.0,0.00021095,2]
[321938191,1712643054551,-508.14919248,0.00021095,2]